[Event "Late-Titled-Tuesday-Blitz-August-29-2023"]
[Site "Chess.com"]
[Date "2023.08.29"]
[Round "9"]
[White "alexrustemov"]
[Black "Rud_Makarian"]
[Result "0-1"]
[WhiteElo "2877"]
[BlackElo "3010"]
[TimeControl "180+1"]
[EndTime "15:43:15 PDT"]
[Termination "Rud_Makarian won on time"]

1. d4 {[%clk 0:03:00.9]} 1... Nf6 {[%clk 0:02:50.6]} 2. Nf3 {[%clk 0:03:01.2]}
2... c5 {[%clk 0:02:50]} 3. d5 {[%clk 0:03:00.4]} 3... b5 {[%clk 0:02:50.6]} 4.
Bg5 {[%clk 0:02:59.1]} 4... g6 {[%clk 0:02:49.4]} 5. Bxf6 {[%clk 0:02:58.3]}
5... exf6 {[%clk 0:02:50.3]} 6. e4 {[%clk 0:02:58.7]} 6... b4 {[%clk 0:02:50.1]}
7. Nbd2 {[%clk 0:02:52.9]} 7... Bg7 {[%clk 0:02:51]} 8. Bd3 {[%clk 0:02:52]}
8... O-O {[%clk 0:02:51.9]} 9. O-O {[%clk 0:02:50]} 9... d6 {[%clk 0:02:52]} 10.
a3 {[%clk 0:02:49.6]} 10... f5 {[%clk 0:02:52]} 11. axb4 {[%clk 0:02:45.6]}
11... fxe4 {[%clk 0:02:44.6]} 12. Nxe4 {[%clk 0:02:40.8]} 12... cxb4 {[%clk
0:02:43.8]} 13. Ra2 {[%clk 0:02:26.3]} 13... Qb6 {[%clk 0:02:38.7]} 14. Bc4
{[%clk 0:02:15.5]} 14... a5 {[%clk 0:02:31.7]} 15. h3 {[%clk 0:02:11]} 15... Bf5
{[%clk 0:02:31.5]} 16. Ng3 {[%clk 0:02:07.4]} 16... Bd7 {[%clk 0:02:27.1]} 17.
Ne2 {[%clk 0:01:48.9]} 17... Na6 {[%clk 0:02:19]} 18. b3 {[%clk 0:01:48.6]}
18... Nc5 {[%clk 0:02:18]} 19. Ned4 {[%clk 0:01:48.8]} 19... Ne4 {[%clk
0:02:16.4]} 20. Qd3 {[%clk 0:01:46.1]} 20... Nc3 {[%clk 0:02:16.7]} 21. Raa1
{[%clk 0:01:45.8]} 21... Rac8 {[%clk 0:02:13.4]} 22. Rfe1 {[%clk 0:01:40.9]}
22... Rfe8 {[%clk 0:02:13.5]} 23. Nc6 {[%clk 0:01:18.8]} 23... Ne2+ {[%clk
0:01:07.9]} 24. Rxe2 {[%clk 0:01:16]} 24... Rxe2 {[%clk 0:01:07.1]} 25. Qxe2
{[%clk 0:01:14.4]} 25... Bxa1 {[%clk 0:01:07.7]} 26. Ne7+ {[%clk 0:01:13.7]}
26... Kg7 {[%clk 0:01:08.3]} 27. Nxc8 {[%clk 0:01:14.1]} 27... Bxc8 {[%clk
0:01:09.2]} 28. Qe8 {[%clk 0:01:10.7]} 28... Qc7 {[%clk 0:00:59.8]} 29. Ng5
{[%clk 0:01:02.4]} 29... Bf5 {[%clk 0:00:56.8]} 30. h4 {[%clk 0:00:41.6]} 30...
Bxc2 {[%clk 0:00:44]} 31. g3 {[%clk 0:00:24.2]} 31... Bf6 {[%clk 0:00:35.3]} 32.
Ne4 {[%clk 0:00:22.7]} 32... Qe7 {[%clk 0:00:28.2]} 33. Nxf6 {[%clk 0:00:21.9]}
33... Qxf6 {[%clk 0:00:26.9]} 34. Qe2 {[%clk 0:00:12.3]} 34... Qc3 {[%clk
0:00:25.6]} 35. Qe7 {[%clk 0:00:07.8]} 35... Bxb3 {[%clk 0:00:14.3]} 36. Bxb3
{[%clk 0:00:07.8]} 36... Qxb3 {[%clk 0:00:15.2]} 37. Qxd6 {[%clk 0:00:08.5]}
37... Qc3 {[%clk 0:00:15.7]} 38. Qc6 {[%clk 0:00:07.5]} 38... Qxc6 {[%clk
0:00:11.8]} 39. dxc6 {[%clk 0:00:07.6]} 39... b3 {[%clk 0:00:12.4]} 40. c7
{[%clk 0:00:08.1]} 40... b2 {[%clk 0:00:13.1]} 41. c8=Q {[%clk 0:00:08.5]} 41...
b1=Q+ {[%clk 0:00:13.7]} 42. Kg2 {[%clk 0:00:08.9]} 42... Qb2 {[%clk 0:00:12.8]}
43. Qa6 {[%clk 0:00:07.7]} 43... Qe5 {[%clk 0:00:12]} 44. Qc4 {[%clk 0:00:05.6]}
44... h5 {[%clk 0:00:12.3]} 45. Kg1 {[%clk 0:00:05.2]} 45... Qb2 {[%clk
0:00:08.6]} 46. Qa6 {[%clk 0:00:02.9]} 46... Qb4 {[%clk 0:00:08.2]} 47. Kg2
{[%clk 0:00:02.3]} 47... a4 {[%clk 0:00:08.3]} 0-1

[Event "Late-Titled-Tuesday-Blitz-August-29-2023"]
[Site "Chess.com"]
[Date "2023.08.29"]
[Round "9"]
[White "gunslinger222"]
[Black "TC2304"]
[Result "0-1"]
[WhiteElo "2455"]
[BlackElo "2417"]
[TimeControl "180+1"]
[EndTime "15:43:18 PDT"]
[Termination "TC2304 won by resignation"]

1. d4 {[%clk 0:02:58.4]} 1... d5 {[%clk 0:03:00.4]} 2. c4 {[%clk 0:02:58.3]}
2... c6 {[%clk 0:03:01.1]} 3. Nf3 {[%clk 0:02:58]} 3... Nf6 {[%clk 0:03:01.2]}
4. Nc3 {[%clk 0:02:57.9]} 4... a6 {[%clk 0:03:01.7]} 5. cxd5 {[%clk 0:02:57.7]}
5... cxd5 {[%clk 0:03:01.9]} 6. Bf4 {[%clk 0:02:56.7]} 6... Nc6 {[%clk
0:02:56.9]} 7. e3 {[%clk 0:02:55]} 7... Bf5 {[%clk 0:02:48.2]} 8. Bd3 {[%clk
0:02:50.7]} 8... Bxd3 {[%clk 0:02:47]} 9. Qxd3 {[%clk 0:02:51.6]} 9... e6 {[%clk
0:02:47]} 10. O-O {[%clk 0:02:51.2]} 10... Bd6 {[%clk 0:02:47.4]} 11. Ne5 {[%clk
0:02:46.7]} 11... O-O {[%clk 0:02:40.1]} 12. Nxc6 {[%clk 0:02:45.2]} 12... bxc6
{[%clk 0:02:38.5]} 13. Bxd6 {[%clk 0:02:45.2]} 13... Qxd6 {[%clk 0:02:39.4]} 14.
Na4 {[%clk 0:02:37.3]} 14... Nd7 {[%clk 0:02:39.1]} 15. Rac1 {[%clk 0:02:34.3]}
15... Rfc8 {[%clk 0:02:39]} 16. Nc5 {[%clk 0:02:31.2]} 16... Nb6 {[%clk
0:02:21.8]} 17. b3 {[%clk 0:02:24.8]} 17... a5 {[%clk 0:02:17.8]} 18. f4 {[%clk
0:02:16]} 18... a4 {[%clk 0:02:14.7]} 19. Rc2 {[%clk 0:02:04.2]} 19... axb3
{[%clk 0:02:13.8]} 20. axb3 {[%clk 0:02:04.2]} 20... g6 {[%clk 0:02:14]} 21.
Rfc1 {[%clk 0:02:02.4]} 21... Ra3 {[%clk 0:02:13.6]} 22. Qd2 {[%clk 0:01:49.3]}
22... Rca8 {[%clk 0:02:04.3]} 23. Qb4 {[%clk 0:01:47.3]} 23... Nd7 {[%clk
0:01:42.8]} 24. Qb7 {[%clk 0:01:33.9]} 24... Nxc5 {[%clk 0:01:30.4]} 25. dxc5
{[%clk 0:01:10.6]} 25... Qb8 {[%clk 0:01:25.4]} 26. Qxc6 {[%clk 0:01:05.3]}
26... Rxb3 {[%clk 0:01:18.2]} 27. Qd6 {[%clk 0:01:00.2]} 27... Rxe3 {[%clk
0:01:06.7]} 28. Qxb8+ {[%clk 0:00:50.8]} 28... Rxb8 {[%clk 0:01:06.7]} 29. c6
{[%clk 0:00:51.7]} 29... Reb3 {[%clk 0:00:54.3]} 30. c7 {[%clk 0:00:51.8]} 30...
Rc8 {[%clk 0:00:54.7]} 31. Rc6 {[%clk 0:00:52]} 31... Kf8 {[%clk 0:00:52.9]} 32.
Rd6 {[%clk 0:00:52.4]} 32... Ke7 {[%clk 0:00:50.3]} 33. Rcc6 {[%clk 0:00:48.4]}
33... Rb7 {[%clk 0:00:47.7]} 34. g3 {[%clk 0:00:36.7]} 34... h5 {[%clk
0:00:42.4]} 35. Kf2 {[%clk 0:00:36.2]} 35... Rbxc7 {[%clk 0:00:38.6]} 36. Rxc7+
{[%clk 0:00:33.4]} 36... Rxc7 {[%clk 0:00:39.5]} 37. Ra6 {[%clk 0:00:33.8]}
37... h4 {[%clk 0:00:35.7]} 38. gxh4 {[%clk 0:00:32.6]} 38... Kf6 {[%clk
0:00:30]} 39. Ra3 {[%clk 0:00:28.5]} 39... Kf5 {[%clk 0:00:29.7]} 40. Kg3 {[%clk
0:00:25]} 40... d4 {[%clk 0:00:28.8]} 41. Ra5+ {[%clk 0:00:20.8]} 41... Ke4
{[%clk 0:00:28.8]} 42. Re5+ {[%clk 0:00:20.8]} 42... Kd3 {[%clk 0:00:29.5]} 43.
h5 {[%clk 0:00:19]} 43... gxh5 {[%clk 0:00:29.1]} 44. Rxh5 {[%clk 0:00:19.3]}
44... Kc2 {[%clk 0:00:28.7]} 45. f5 {[%clk 0:00:17.2]} 45... d3 {[%clk
0:00:19.9]} 46. fxe6 {[%clk 0:00:16.5]} 46... fxe6 {[%clk 0:00:20.5]} 47. Re5
{[%clk 0:00:14.1]} 47... d2 {[%clk 0:00:18.2]} 48. Re2 {[%clk 0:00:14.3]} 48...
Kd3 {[%clk 0:00:14.8]} 49. Rxd2+ {[%clk 0:00:14.9]} 49... Kxd2 {[%clk 0:00:15]}
50. Kg4 {[%clk 0:00:15.8]} 50... Ke3 {[%clk 0:00:14.7]} 51. Kg5 {[%clk
0:00:15.9]} 51... e5 {[%clk 0:00:13.6]} 52. h4 {[%clk 0:00:16.2]} 52... e4
{[%clk 0:00:14.2]} 53. h5 {[%clk 0:00:16.4]} 53... Kf3 {[%clk 0:00:14.8]} 54.
Kg6 {[%clk 0:00:12.9]} 54... e3 {[%clk 0:00:14.5]} 55. h6 {[%clk 0:00:13.5]}
55... e2 {[%clk 0:00:14.7]} 56. h7 {[%clk 0:00:13.7]} 56... Rxh7 {[%clk
0:00:15]} 57. Kxh7 {[%clk 0:00:12.9]} 57... e1=Q {[%clk 0:00:15.3]} 0-1

[Event "Late-Titled-Tuesday-Blitz-August-29-2023"]
[Site "Chess.com"]
[Date "2023.08.29"]
[Round "9"]
[White "McCarthyStone"]
[Black "BozeKat"]
[Result "0-1"]
[WhiteElo "2428"]
[BlackElo "2119"]
[TimeControl "180+1"]
[EndTime "15:43:18 PDT"]
[Termination "BozeKat won by checkmate"]

1. d4 {[%clk 0:02:55.4]} 1... Nf6 {[%clk 0:02:59.5]} 2. Nc3 {[%clk 0:02:55.8]}
2... e6 {[%clk 0:02:56.3]} 3. e4 {[%clk 0:02:54.7]} 3... d5 {[%clk 0:02:55.2]}
4. e5 {[%clk 0:02:53.3]} 4... Nfd7 {[%clk 0:02:55.4]} 5. f4 {[%clk 0:02:53.4]}
5... g6 {[%clk 0:02:48.2]} 6. Nf3 {[%clk 0:02:51.3]} 6... c5 {[%clk 0:02:47]} 7.
Be3 {[%clk 0:02:42.1]} 7... Nc6 {[%clk 0:02:45.7]} 8. h4 {[%clk 0:02:35.6]} 8...
h5 {[%clk 0:02:40.2]} 9. Be2 {[%clk 0:02:35.4]} 9... cxd4 {[%clk 0:02:32.3]} 10.
Nxd4 {[%clk 0:02:34.8]} 10... Nxd4 {[%clk 0:02:29.2]} 11. Bxd4 {[%clk
0:02:33.7]} 11... Bc5 {[%clk 0:02:18.8]} 12. Nb5 {[%clk 0:02:28]} 12... Be7
{[%clk 0:02:01.1]} 13. c4 {[%clk 0:02:17.6]} 13... dxc4 {[%clk 0:01:41.2]} 14.
Bxc4 {[%clk 0:02:14.9]} 14... Bxh4+ {[%clk 0:01:37.2]} 15. Kf1 {[%clk
0:02:10.4]} 15... Be7 {[%clk 0:01:37.3]} 16. g4 {[%clk 0:01:53.3]} 16... h4
{[%clk 0:01:29.2]} 17. f5 {[%clk 0:01:49.5]} 17... Nb6 {[%clk 0:01:25.3]} 18.
Bb3 {[%clk 0:01:39.5]} 18... Bd7 {[%clk 0:01:11.9]} 19. Nd6+ {[%clk 0:01:38.3]}
19... Bxd6 {[%clk 0:01:05.7]} 20. exd6 {[%clk 0:01:39.2]} 20... Bb5+ {[%clk
0:01:00.2]} 21. Kg1 {[%clk 0:01:35.7]} 21... Rh7 {[%clk 0:00:29.9]} 22. fxe6
{[%clk 0:01:32.3]} 22... fxe6 {[%clk 0:00:24.4]} 23. Bxe6 {[%clk 0:01:29.5]}
23... Qxd6 {[%clk 0:00:21.5]} 24. Rh3 {[%clk 0:01:02.6]} 24... Rd8 {[%clk
0:00:12.2]} 25. Re3 {[%clk 0:00:51.6]} 25... Qxd4 {[%clk 0:00:02.8]} 26. Qxd4
{[%clk 0:00:42.6]} 26... Rxd4 {[%clk 0:00:03.7]} 27. Rae1 {[%clk 0:00:31.5]}
27... Re7 {[%clk 0:00:02.7]} 28. Bf7+ {[%clk 0:00:27]} 28... Kxf7 {[%clk
0:00:01.2]} 29. Rxe7+ {[%clk 0:00:27.9]} 29... Kf6 {[%clk 0:00:01.6]} 30. Rxb7
{[%clk 0:00:28.8]} 30... Rxg4+ {[%clk 0:00:01.4]} 31. Kf2 {[%clk 0:00:26.1]}
31... Bc6 {[%clk 0:00:02.3]} 32. Rxa7 {[%clk 0:00:20.6]} 32... Rf4+ {[%clk
0:00:02.9]} 33. Kg1 {[%clk 0:00:16.2]} 33... Rf3 {[%clk 0:00:03.2]} 34. Rf1
{[%clk 0:00:13.1]} 34... Rxf1+ {[%clk 0:00:02.7]} 35. Kxf1 {[%clk 0:00:14]}
35... Kg5 {[%clk 0:00:03]} 36. Ra6 {[%clk 0:00:14.3]} 36... Bb5+ {[%clk
0:00:03.2]} 37. Kf2 {[%clk 0:00:14.7]} 37... Bxa6 {[%clk 0:00:04.1]} 38. b4
{[%clk 0:00:15.3]} 38... h3 {[%clk 0:00:04.9]} 39. Kg3 {[%clk 0:00:15.5]} 39...
Bb7 {[%clk 0:00:05.8]} 40. Kxh3 {[%clk 0:00:15.7]} 40... Kf4 {[%clk 0:00:05.8]}
41. Kh2 {[%clk 0:00:15.2]} 41... g5 {[%clk 0:00:06.7]} 42. a4 {[%clk 0:00:15.6]}
42... g4 {[%clk 0:00:07.6]} 43. a5 {[%clk 0:00:15.9]} 43... Nc8 {[%clk
0:00:05.4]} 44. b5 {[%clk 0:00:16.4]} 44... Na7 {[%clk 0:00:05.2]} 45. a6 {[%clk
0:00:15.6]} 45... Bxa6 {[%clk 0:00:05.4]} 46. bxa6 {[%clk 0:00:14.8]} 46... Kf3
{[%clk 0:00:06.3]} 47. Kg1 {[%clk 0:00:15.2]} 47... g3 {[%clk 0:00:06.7]} 48.
Kf1 {[%clk 0:00:15.3]} 48... Kg4 {[%clk 0:00:01.9]} 49. Kg1 {[%clk 0:00:16.2]}
49... Kf3 {[%clk 0:00:02.3]} 50. Kf1 {[%clk 0:00:16.3]} 50... g2+ {[%clk
0:00:02.9]} 51. Kg1 {[%clk 0:00:16.6]} 51... Nc8 {[%clk 0:00:01.9]} 52. a7
{[%clk 0:00:14.4]} 52... Nxa7 {[%clk 0:00:02.8]} 53. Kh2 {[%clk 0:00:14.8]}
53... Nb5 {[%clk 0:00:03.4]} 54. Kh3 {[%clk 0:00:15.7]} 54... Nd6 {[%clk
0:00:04.1]} 55. Kh4 {[%clk 0:00:16.6]} 55... Ne4 {[%clk 0:00:04.9]} 56. Kh3
{[%clk 0:00:16.6]} 56... Nf2+ {[%clk 0:00:05.8]} 57. Kh2 {[%clk 0:00:17]} 57...
Ng4+ {[%clk 0:00:05.8]} 58. Kg1 {[%clk 0:00:17.4]} 58... Ne3 {[%clk 0:00:05.5]}
59. Kh2 {[%clk 0:00:17.5]} 59... Kf2 {[%clk 0:00:06.4]} 60. Kh3 {[%clk
0:00:17.7]} 60... g1=Q {[%clk 0:00:07.3]} 61. Kh4 {[%clk 0:00:18.1]} 61... Qg4#
{[%clk 0:00:07.8]} 0-1

[Event "Late-Titled-Tuesday-Blitz-August-29-2023"]
[Site "Chess.com"]
[Date "2023.08.29"]
[Round "9"]
[White "NelsonLinda"]
[Black "jaskol95"]
[Result "0-1"]
[WhiteElo "2456"]
[BlackElo "2576"]
[TimeControl "180+1"]
[EndTime "15:43:19 PDT"]
[Termination "jaskol95 won by checkmate"]

1. Nf3 {[%clk 0:02:58.2]} 1... d6 {[%clk 0:02:57.5]} 2. d4 {[%clk 0:02:55.2]}
2... g6 {[%clk 0:02:55.5]} 3. e4 {[%clk 0:02:54.1]} 3... Bg7 {[%clk 0:02:55.4]}
4. Bc4 {[%clk 0:02:52.6]} 4... a6 {[%clk 0:02:53.6]} 5. a4 {[%clk 0:02:51]} 5...
Nf6 {[%clk 0:02:53.6]} 6. Qe2 {[%clk 0:02:48.2]} 6... O-O {[%clk 0:02:45.8]} 7.
O-O {[%clk 0:02:45.8]} 7... b6 {[%clk 0:02:43.8]} 8. Re1 {[%clk 0:02:40.4]} 8...
Bb7 {[%clk 0:02:43.5]} 9. e5 {[%clk 0:02:20.3]} 9... Nd5 {[%clk 0:02:39.7]} 10.
e6 {[%clk 0:02:14.6]} 10... f6 {[%clk 0:02:33.2]} 11. c3 {[%clk 0:02:10]} 11...
c6 {[%clk 0:02:27.9]} 12. Bxd5 {[%clk 0:01:44.8]} 12... cxd5 {[%clk 0:02:27.6]}
13. h4 {[%clk 0:01:44.8]} 13... Qc8 {[%clk 0:02:20]} 14. Nbd2 {[%clk 0:01:38.1]}
14... Nc6 {[%clk 0:02:19.9]} 15. Nh2 {[%clk 0:01:30.2]} 15... a5 {[%clk
0:02:11.9]} 16. h5 {[%clk 0:01:28.5]} 16... g5 {[%clk 0:02:11.5]} 17. h6 {[%clk
0:00:54.5]} 17... Bh8 {[%clk 0:02:09.8]} 18. f4 {[%clk 0:00:52]} 18... Nd8
{[%clk 0:02:01.3]} 19. fxg5 {[%clk 0:00:40.9]} 19... Bc6 {[%clk 0:01:57.1]} 20.
Qg4 {[%clk 0:00:32.6]} 20... f5 {[%clk 0:01:57]} 21. Qe2 {[%clk 0:00:29.3]}
21... Be8 {[%clk 0:01:54]} 22. Ndf3 {[%clk 0:00:24.8]} 22... Bh5 {[%clk
0:01:49.2]} 23. Bf4 {[%clk 0:00:24.3]} 23... Qc4 {[%clk 0:01:34.1]} 24. Qf2
{[%clk 0:00:24.5]} 24... Qc8 {[%clk 0:01:30.9]} 25. Qe3 {[%clk 0:00:23.4]} 25...
Bg6 {[%clk 0:01:17.3]} 26. Rf1 {[%clk 0:00:23.1]} 26... Qxe6 {[%clk 0:01:15.8]}
27. Qd2 {[%clk 0:00:16.9]} 27... Qf7 {[%clk 0:01:11.8]} 28. Rfe1 {[%clk
0:00:16.3]} 28... Ne6 {[%clk 0:01:11.5]} 29. Bg3 {[%clk 0:00:07.7]} 29... f4
{[%clk 0:01:11]} 30. Bf2 {[%clk 0:00:08.1]} 30... Rac8 {[%clk 0:01:02.5]} 31.
Qe2 {[%clk 0:00:08.3]} 31... Bf5 {[%clk 0:00:58.6]} 32. Nf1 {[%clk 0:00:06.8]}
32... Qg6 {[%clk 0:00:54.6]} 33. Bh4 {[%clk 0:00:06]} 33... Be4 {[%clk
0:00:52.9]} 34. N1d2 {[%clk 0:00:06.2]} 34... Bf5 {[%clk 0:00:48.7]} 35. Qb5
{[%clk 0:00:06.1]} 35... Be4 {[%clk 0:00:34.3]} 36. Qe2 {[%clk 0:00:04]} 36...
Bf5 {[%clk 0:00:22.5]} 37. Qb5 {[%clk 0:00:03.8]} 37... Nc7 {[%clk 0:00:20.6]}
38. Qxb6 {[%clk 0:00:03.6]} 38... Be4 {[%clk 0:00:18.7]} 39. Nxe4 {[%clk
0:00:02.6]} 39... dxe4 {[%clk 0:00:19.6]} 40. Nd2 {[%clk 0:00:03.5]} 40... d5
{[%clk 0:00:18]} 41. Qxa5 {[%clk 0:00:02.7]} 41... f3 {[%clk 0:00:15.9]} 42.
gxf3 {[%clk 0:00:01.8]} 42... exf3 {[%clk 0:00:16.5]} 43. Rf1 {[%clk 0:00:02.1]}
43... Rf4 {[%clk 0:00:16.4]} 44. Bg3 {[%clk 0:00:01.3]} 44... Qxg5 {[%clk
0:00:17.1]} 45. Kf2 {[%clk 0:00:01.8]} 45... Rg4 {[%clk 0:00:17.3]} 46. Nxf3
{[%clk 0:00:02.3]} 46... Qf5 {[%clk 0:00:16.8]} 47. Rg1 {[%clk 0:00:02.7]} 47...
Rf8 {[%clk 0:00:17.1]} 48. Bf4 {[%clk 0:00:02.6]} 48... Qxf4 {[%clk 0:00:16.9]}
49. Rxg4+ {[%clk 0:00:02.5]} 49... Qxg4 {[%clk 0:00:17.2]} 50. Rg1 {[%clk
0:00:03.2]} 50... Rxf3+ {[%clk 0:00:17.6]} 51. Ke2 {[%clk 0:00:02]} 51... Qxg1
{[%clk 0:00:17.9]} 52. Kxf3 {[%clk 0:00:01.8]} 52... Qf1+ {[%clk 0:00:18]} 53.
Kg4 {[%clk 0:00:02.1]} 53... Qg2+ {[%clk 0:00:18.2]} 54. Kh4 {[%clk 0:00:02.5]}
54... Bf6+ {[%clk 0:00:17.7]} 55. Kh5 {[%clk 0:00:03.1]} 55... Qg5# {[%clk
0:00:18.6]} 0-1

[Event "Late-Titled-Tuesday-Blitz-August-29-2023"]
[Site "Chess.com"]
[Date "2023.08.29"]
[Round "9"]
[White "FairChess_on_YouTube"]
[Black "Firouzja2003"]
[Result "1/2-1/2"]
[WhiteElo "3068"]
[BlackElo "3115"]
[TimeControl "180+1"]
[EndTime "15:43:23 PDT"]
[Termination "Game drawn by repetition"]

1. d4 {[%clk 0:03:00.9]} 1... Nf6 {[%clk 0:02:59.5]} 2. c4 {[%clk 0:03:01.5]}
2... g6 {[%clk 0:03:00]} 3. Nc3 {[%clk 0:03:01.4]} 3... Bg7 {[%clk 0:03:00.7]}
4. e4 {[%clk 0:03:01.4]} 4... d6 {[%clk 0:03:01.3]} 5. h3 {[%clk 0:03:01.5]}
5... e5 {[%clk 0:03:00.8]} 6. d5 {[%clk 0:03:01]} 6... a5 {[%clk 0:03:00.4]} 7.
Be3 {[%clk 0:02:59.8]} 7... Na6 {[%clk 0:03:00.9]} 8. Nf3 {[%clk 0:02:59.9]}
8... O-O {[%clk 0:02:59.4]} 9. Nd2 {[%clk 0:03:00]} 9... Nd7 {[%clk 0:02:58.6]}
10. g4 {[%clk 0:02:55.1]} 10... Nb6 {[%clk 0:02:55.9]} 11. Bd3 {[%clk
0:02:50.4]} 11... Nc5 {[%clk 0:02:50.9]} 12. Bc2 {[%clk 0:02:50]} 12... c6
{[%clk 0:02:51.3]} 13. h4 {[%clk 0:02:42.1]} 13... cxd5 {[%clk 0:02:45.4]} 14.
cxd5 {[%clk 0:02:43]} 14... Bd7 {[%clk 0:02:43.6]} 15. h5 {[%clk 0:02:40.3]}
15... Qc8 {[%clk 0:02:01.8]} 16. Rg1 {[%clk 0:02:29.7]} 16... Bf6 {[%clk
0:01:06.2]} 17. Qf3 {[%clk 0:02:28]} 17... Be7 {[%clk 0:01:05.1]} 18. Qh3 {[%clk
0:02:19.1]} 18... Nca4 {[%clk 0:00:54.2]} 19. Nxa4 {[%clk 0:01:58.3]} 19... Nxa4
{[%clk 0:00:53]} 20. O-O-O {[%clk 0:01:57.4]} 20... g5 {[%clk 0:00:27.2]} 21.
Kb1 {[%clk 0:01:52.8]} 21... b5 {[%clk 0:00:26.8]} 22. Rc1 {[%clk 0:01:48.4]}
22... Qb7 {[%clk 0:00:27.2]} 23. Qf3 {[%clk 0:01:27.2]} 23... Rfc8 {[%clk
0:00:24.4]} 24. Nf1 {[%clk 0:01:19.2]} 24... h6 {[%clk 0:00:24.1]} 25. Ng3
{[%clk 0:01:19.2]} 25... Rc7 {[%clk 0:00:22.5]} 26. Nf5 {[%clk 0:01:19.1]} 26...
Bxf5 {[%clk 0:00:22.5]} 27. gxf5 {[%clk 0:01:00.6]} 27... f6 {[%clk 0:00:20.7]}
28. Qe2 {[%clk 0:00:55]} 28... Rac8 {[%clk 0:00:20.2]} 29. Bd3 {[%clk 0:00:53]}
29... Nc5 {[%clk 0:00:15.4]} 30. f3 {[%clk 0:00:34.7]} 30... Nxd3 {[%clk
0:00:13.4]} 31. Qxd3 {[%clk 0:00:32]} 31... Rc4 {[%clk 0:00:12.7]} 32. b3 {[%clk
0:00:30.2]} 32... Bd8 {[%clk 0:00:11.2]} 33. Ka1 {[%clk 0:00:23.7]} 33... Rxc1+
{[%clk 0:00:10.5]} 34. Rxc1 {[%clk 0:00:24.6]} 34... Rxc1+ {[%clk 0:00:10.2]}
35. Bxc1 {[%clk 0:00:25.5]} 35... Bb6 {[%clk 0:00:10.8]} 36. Kb1 {[%clk
0:00:20.6]} 36... Bc5 {[%clk 0:00:08.5]} 37. Bd2 {[%clk 0:00:20.1]} 37... b4
{[%clk 0:00:06.3]} 38. Be3 {[%clk 0:00:15.3]} 38... Bxe3 {[%clk 0:00:03.7]} 39.
Qxe3 {[%clk 0:00:16.2]} 39... Qf7 {[%clk 0:00:03.6]} 40. Qc1 {[%clk 0:00:13.5]}
40... Qxh5 {[%clk 0:00:03.2]} 41. Qc8+ {[%clk 0:00:14.1]} 41... Kg7 {[%clk
0:00:03.6]} 42. Qd7+ {[%clk 0:00:14.2]} 42... Qf7 {[%clk 0:00:03.6]} 43. Qxd6
{[%clk 0:00:14.5]} 43... h5 {[%clk 0:00:04.5]} 44. Qc6 {[%clk 0:00:04.3]} 44...
h4 {[%clk 0:00:04.9]} 45. d6 {[%clk 0:00:04.5]} 45... h3 {[%clk 0:00:05.3]} 46.
Qc2 {[%clk 0:00:04.8]} 46... Kf8 {[%clk 0:00:01.6]} 47. Qc8+ {[%clk 0:00:04.8]}
47... Kg7 {[%clk 0:00:02.2]} 48. Qc2 {[%clk 0:00:05]} 48... Kf8 {[%clk
0:00:02.2]} 49. Qc8+ {[%clk 0:00:02.2]} 49... Kg7 {[%clk 0:00:02.4]} 50. Qc2
{[%clk 0:00:01.5]} 1/2-1/2

[Event "Late-Titled-Tuesday-Blitz-August-29-2023"]
[Site "Chess.com"]
[Date "2023.08.29"]
[Round "9"]
[White "Chessdreamer2020"]
[Black "jinbojinbo"]
[Result "0-1"]
[WhiteElo "2526"]
[BlackElo "2676"]
[TimeControl "180+1"]
[EndTime "15:43:27 PDT"]
[Termination "jinbojinbo won on time"]

1. e4 {[%clk 0:03:00]} 1... e5 {[%clk 0:02:59.4]} 2. Nf3 {[%clk 0:03:00.1]} 2...
Nc6 {[%clk 0:02:59.3]} 3. Bb5 {[%clk 0:03:00.2]} 3... a6 {[%clk 0:02:59.3]} 4.
Bxc6 {[%clk 0:03:00.3]} 4... dxc6 {[%clk 0:02:59.3]} 5. Nc3 {[%clk 0:03:00.5]}
5... Bd6 {[%clk 0:02:49.2]} 6. d4 {[%clk 0:03:00.7]} 6... exd4 {[%clk 0:02:49]}
7. Qxd4 {[%clk 0:03:01.6]} 7... f6 {[%clk 0:02:47]} 8. Be3 {[%clk 0:03:01.9]}
8... Ne7 {[%clk 0:02:25.5]} 9. O-O-O {[%clk 0:03:01.7]} 9... Ng6 {[%clk
0:02:25.5]} 10. Rhe1 {[%clk 0:02:47]} 10... Qe7 {[%clk 0:02:24.8]} 11. Nd2
{[%clk 0:02:20.9]} 11... Be6 {[%clk 0:02:10.5]} 12. Nc4 {[%clk 0:02:18.6]} 12...
Be5 {[%clk 0:01:46]} 13. Nxe5 {[%clk 0:02:17.6]} 13... fxe5 {[%clk 0:01:46.9]}
14. Qc5 {[%clk 0:02:08.6]} 14... b6 {[%clk 0:01:39.8]} 15. Qxc6+ {[%clk
0:02:06.1]} 15... Kf7 {[%clk 0:01:40]} 16. Nd5 {[%clk 0:02:02.7]} 16... Bxd5
{[%clk 0:01:31.1]} 17. Qxd5+ {[%clk 0:02:00.4]} 17... Qe6 {[%clk 0:01:27.7]} 18.
Qd7+ {[%clk 0:01:57.3]} 18... Ne7 {[%clk 0:01:18.9]} 19. Bg5 {[%clk 0:01:44.3]}
19... Rhe8 {[%clk 0:00:54.4]} 20. Re3 {[%clk 0:01:43.5]} 20... Qxa2 {[%clk
0:00:29]} 21. Bxe7 {[%clk 0:01:22.1]} 21... Kg8 {[%clk 0:00:28.8]} 22. Ra3
{[%clk 0:01:11.1]} 22... Qc4 {[%clk 0:00:25.8]} 23. f3 {[%clk 0:01:07.7]} 23...
Qe2 {[%clk 0:00:18.3]} 24. Rc3 {[%clk 0:00:57]} 24... c5 {[%clk 0:00:14.8]} 25.
Rcd3 {[%clk 0:00:19.2]} 25... a5 {[%clk 0:00:14.3]} 26. Qe6+ {[%clk 0:00:18]}
26... Kh8 {[%clk 0:00:13.7]} 27. Rd7 {[%clk 0:00:17.8]} 27... Qxg2 {[%clk
0:00:12.3]} 28. Qf7 {[%clk 0:00:16.1]} 28... a4 {[%clk 0:00:09.5]} 29. Bf6
{[%clk 0:00:14.4]} 29... Rg8 {[%clk 0:00:09.2]} 30. Bxe5 {[%clk 0:00:12.9]}
30... a3 {[%clk 0:00:04.9]} 31. bxa3 {[%clk 0:00:11.7]} 31... Qg5+ {[%clk
0:00:04.7]} 32. f4 {[%clk 0:00:10.3]} 32... Qg2 {[%clk 0:00:04.5]} 33. Qd5
{[%clk 0:00:07]} 33... Rxa3 {[%clk 0:00:03.5]} 34. Bb2 {[%clk 0:00:06.8]} 34...
Raa8 {[%clk 0:00:03.2]} 35. Qh5 {[%clk 0:00:06.1]} 35... Raf8 {[%clk 0:00:03.1]}
36. e5 {[%clk 0:00:04.5]} 36... Rxf4 {[%clk 0:00:03.2]} 37. e6 {[%clk
0:00:04.7]} 37... Rf2 {[%clk 0:00:03.4]} 38. R7d2 {[%clk 0:00:03.1]} 38... Rxd2
{[%clk 0:00:03.1]} 39. Rxd2 {[%clk 0:00:04]} 39... Qf1+ {[%clk 0:00:02.6]} 40.
Qd1 {[%clk 0:00:04.3]} 40... Qf4 {[%clk 0:00:03.1]} 41. Qe2 {[%clk 0:00:04]}
41... Re8 {[%clk 0:00:03.4]} 42. Qe5 {[%clk 0:00:03.3]} 42... Qxe5 {[%clk
0:00:02.9]} 43. Bxe5 {[%clk 0:00:03.4]} 43... h6 {[%clk 0:00:03.6]} 44. Rd6
{[%clk 0:00:02.9]} 44... b5 {[%clk 0:00:03]} 45. Bf4 {[%clk 0:00:02.2]} 45... c4
{[%clk 0:00:03.2]} 46. Be3 {[%clk 0:00:02.7]} 46... Kh7 {[%clk 0:00:03]} 47. Kd2
{[%clk 0:00:02.4]} 47... Kg6 {[%clk 0:00:03.6]} 0-1